[Event "Olomouc Chess Summer Open 2022"]
[Site "Olomouc"]
[Date "2022.08.19"]
[Round "8.20"]
[White "Cagasik, Tomas"]
[Black "Soban, Jaroslav"]
[Result "0-1"]
[ECO "A88"]
[WhiteElo "2143"]
[BlackElo "2101"]
[Annotator "NA RC"]
[PlyCount "60"]
[EventDate "2022.08.14"]
[EventCountry "CZE"]
[SourceTitle "playchess.com"]
[Source "ChessBase"]
[SourceQuality "1"]
[TimeControl "40/5400+30:1800+30"]

1. Nf3 {[%emt 0:09:54]} f5 {[%emt 0:00:16]} 2. d4 {[%emt 0:01:03]} Nf6 {[%emt 0:00:29]} 3. c4 {[%emt 0:00:19]} g6 {[%emt 0:00:27]} 4. Nc3 {[%emt 0:00:32]} Bg7 {[%emt 0:00:08]} 5. g3 {[%emt 0:00:33]} O-O {[%emt 0:00:08]} 6. Bg2 {[%emt 0:00:34]} d6 {[%emt 0:00:08]} 7. O-O {[%emt 0:01:15]} c6 {[%emt 0:00:25]} 8. Re1 {[%emt 0:11:04]} Na6 {[%emt 0:05:34]} 9. a3 {[%emt 0:02:08]} Qc7 {[%emt 0:02:43]} 10. Qc2 {[%emt 0:15:04]} e5 {[%emt 0:04:25]} 11. dxe5 {[%emt 0:03:16]} dxe5 {[%emt 0:00:07]} 12. e4 {[%emt 0:00:39]} Nc5 13. Nd2 {[%emt 0:21:18]} f4 {[%emt 0:33:08]} 14. f3 {[%emt 0:08:35]} Qd8 {[%emt 0:19:11]} 15. Rf1 {[%emt 0:11:37]} fxg3 {[%emt 0:07:17]} 16. hxg3 {[%emt 0:00:38]} Nh5 {[%emt 0:00:52]} 17. Ne2 {[%emt 0:00:36]} Nd3 {[%emt 0:02:05]} 18. c5 {[%emt 0:01:22]} Bh6 {[%emt 0:04:08]} 19. Nc4 {[%emt 0:04:44]} Nxc1 {[%emt 0:00:10]} 20. Nxc1 {[%emt 0:00:08]} Nxg3 {[%emt 0:01:20]} 21. Rd1 {[%emt 0:00:26]} Qh4 {[%emt 0:01:06]} 22. Qf2 {[%emt 0:01:00]} Be6 {[%emt 0:02:59]} 23. Ne3 {[%emt 0:01:03]} Qg5 {[%emt 0:00:39]} 24. Nf1 {[%emt 0:01:39]} Nxe4 {[%emt 0:00:39]} 25. Qc2 {[%emt 0:00:04]} Ng3 {[%emt 0:01:12]} 26. Qd2 {[%emt 0:01:17]} Qxd2 {[%emt 0:02:45]} 27. Nxd2 {[%emt 0:00:04]} Rad8 {[%emt 0:01:14]} 28. Ncb3 {[%emt 0:00:14]} Be3+ {[%emt 0:02:01]} 29. Kh2 {[%emt 0:00:05]} Bf4 {[%emt 0:00:27]} 30. Kg1 {[%emt 0:00:04]} Rd3 {[%emt 0:01:08]} 0-1

[Event "Olomouc Chess Summer Open 2022"]
[Site "Olomouc"]
[Date "2022.08.20"]
[Round "9.16"]
[White "Al-Ali, Hussein Ali Hussein"]
[Black "Muzika, Paul"]
[Result "1/2-1/2"]
[ECO "C47"]
[WhiteElo "2262"]
[BlackElo "2072"]
[Annotator "TA"]
[PlyCount "230"]
[EventDate "2022.08.14"]
[EventCountry "CZE"]
[SourceTitle "playchess.com"]
[Source "ChessBase"]
[SourceQuality "1"]
[TimeControl "40/5400+30:1800+30"]

{[%evp 14,230,-12,-10,0,-20,6,-12,0,-14,52,29,62,9,41,30,47,44,76,36,89,70,76,28,89,92,83,100,97,92,110,110,59,81,163,138,138,147,139,130,125,39,51,31,26,0,139,139,183,173,181,173,195,165,166,154,154,146,179,155,162,167,243,237,214,214,215,195,161,126,152,131,125,79,102,73,109,68,112,112,121,121,179,121,158,139,138,0,174,121,121,121,121,121,145,121,121,121,121,121,121,121,121,73,121,121,121,121,121,121,121,86,121,121,121,121,121,121,121,121,121,121,121,121,121,121,121,121,121,121,121,13,121,121,121,0,121,0,0,0,0,0,0,0,0,0,0,0,0,0,0,0,0,0,0,0,0,0,0,0,0,0,0,0,0,0,0,0,0,0,0,0,0,0,0,0,0,0,0,0,0,0,0,0,0,0,0,0,0,0,0,0,0,0,0,0,0,0,0,0,0,0,0,0,0,0,0,0,0,0,0,0,0,0,0,0,0,0,0]} 1. e4 {[%emt 0:05:47]} e5 {[%emt 0:01:11]} 2. Nf3 {[%emt 0:00:10]} Nc6 {[%emt 0:00:06]} 3. Nc3 {[%emt 0:00:10]} Nf6 {[%emt 0:00:12]} 4. g3 {[%emt 0:00:08]} Bc5 {[%emt 0:00:13]} 5. Bg2 {[%emt 0:00:07]} d6 {[%emt 0:00:14]} 6. d3 {[%emt 0:00:22]} a6 {[%emt 0:00:21]} 7. Be3 {[%emt 0:00:37]} Bxe3 {[%emt 0:04:47]} 8. fxe3 {[%emt 0:00:06]} Be6 {[%emt 0:01:09] C26: Vienna Game: 2...Nf6, sidelines .} 9. Qd2 {[%emt 0:00:33]} h6 {[%emt 0:01:46]} 10. O-O {[%emt 0:00:34]} O-O {[%emt 0:05:51]} 11. Nh4 {[%emt 0:00:24] [#]} g6 $146 {[%emt 0:07:54]} (11... Ne7 $11) ({Predecessor:} 11... Ne7 12. d4 Qd7 13. Rad1 Rad8 14. Qf2 Bc4 15. Rfe1 Ng4 16. Qf3 Be6 17. d5 Nxh2 18. Kxh2 {1-0 (40) Charpentier,D-Lalanne,C France 1996}) 12. b3 {[%emt 0:01:27]} b5 {[%emt 0:10:19]} 13. a3 {[%emt 0:00:30]} (13. Nd5 $14 Nd7 14. a4) 13... Kg7 {[%emt 0:01:24]} 14. d4 {[%emt 0:00:52] And now d5 would win.} Bg4 {[%emt 0:01:34]} 15. a4 {[%emt 0:02:05]} bxa4 {[%emt 0:18:27]} 16. Rxa4 {[%emt 0:00:50]} (16. Nd5 $5 {[%cal Rd5f6]} Nd7 17. Rxa4 $14) 16... Ne7 {[%emt 0:03:05]} (16... Bd7 $14) 17. Qf2 {[%emt 0:03:10]} Nh7 {[%emt 0:01:31]} 18. Rfa1 {[%emt 0:00:28]} (18. Nf3 $16) 18... Bc8 {[%emt 0:02:21]} (18... Ng5 $11 {keeps the balance.}) 19. dxe5 $16 {[%emt 0:03:57]} dxe5 {[%emt 0:00:18]} 20. Rd1 $36 {[%emt 0:00:31][%mdl 2048] White is really pushing.} Bd7 {[%emt 0:06:52]} 21. Nf3 {[%emt 0:01:17] 0x0.001ebad69242dp-1022s more active pieces.} f6 {[%emt 0:01:59]} 22. Bh3 {[%emt 0:05:06]} Bxh3 {[%emt 0:00:06]} 23. Rxd8 {[%emt 0:00:05]} Rfxd8 {[%emt 0:00:03]} (23... Raxd8 $16 24. Rxa6 Rd7) 24. Ra1 {[%emt 0:00:59]} Rd6 {[%emt 0:00:46]} 25. Rd1 {[%emt 0:01:38]} Rad8 {[%emt 0:00:11]} 26. Rxd6 {[%emt 0:02:17]} Rxd6 {[%emt 0:00:06]} 27. Kh1 {[%emt 0:04:09]} (27. Qe1 $16) 27... Ng5 $14 {[%emt 0:06:12]} 28. Ng1 {[%emt 0:00:55]} Bd7 {[%emt 0:00:13]} 29. Nf3 {[%emt 0:04:19]} Nxf3 {[%emt 0:03:38]} (29... Bh3 $1 $11) 30. Qxf3 $16 {[%emt 0:00:06]} Bc6 {[%emt 0:00:12] Inhibits Nd5.} 31. Qe2 {[%emt 0:00:17] Inhibits Rd2.} h5 {[%emt 0:02:15]} 32. Kg1 {[%emt 0:00:07]} Bd7 {[%emt 0:01:09]} 33. Kg2 {[%emt 0:03:23]} Bg4 {[%emt 0:01:04]} 34. Qe1 {[%emt 0:00:10]} Rc6 {[%emt 0:01:21]} 35. h3 {[%emt 0:00:30]} Be6 {[%emt 0:00:15]} 36. Qd2 $1 {[%emt 0:00:18]} Rd6 {[%emt 0:00:05] Inhibits Nd5.} 37. Qe2 {[%emt 0:01:08]} Nc6 {[%emt 0:08:47]} (37... g5 $142 38. Na4 Kg6) 38. Nd5 $1 $18 {[%emt 0:01:35]} ({Much less strong is} 38. Qxa6 $6 Nd8 39. Qe2 Nf7) 38... Bxd5 {[%emt 0:02:47]} 39. exd5 {[%emt 0:00:49]} Rxd5 {[%emt 0:00:07][%mdl 4096] Endgame KQ-KRN} 40. Qc4 {[%emt 0:00:28] Inhibits Rc5.} Rd6 {[%emt 0:00:14]} 41. b4 {[%emt 0:30:35][%mdl 1024] White has strong compensation.} f5 {[%emt 0:34:33]} 42. Kf1 {[%emt 0:01:14]} Kf6 {[%emt 0:00:00]} 43. Ke2 {[%emt 0:00:00]} ({White should try} 43. g4) 43... Ne7 {[%emt 0:00:00]} 44. c3 {[%emt 0:00:00][%cal Bc2c3,Bc3c4,Bc4c5][%mdl 32]} ({Much worse is} 44. Qxc7 Rc6 45. Qd7 Rxc2+ 46. Kd3 Rc6 $11) 44... Rc6 {[%emt 0:00:00] [#]} 45. Qb3 {[%emt 0:00:00]} Kg7 {[%emt 0:00:00]} 46. c4 {[%emt 0:00:00]} Kf8 {[%emt 0:00:00]} 47. c5 {[%emt 0:00:00]} Ke8 {[%emt 0:00:00]} (47... e4 $16 48. Qc4 Ke8) 48. Qa2 {[%emt 0:00:00]} (48. e4 $18) 48... Rf6 {[%emt 0:00:00]} 49. Qa1 {[%emt 0:00:00]} Re6 {[%emt 0:00:00]} 50. Qa2 {[%emt 0:00:39]} Rf6 {[%emt 0:00:00]} 51. Qb2 {[%emt 0:01:48]} (51. Kf3 $18) 51... Re6 $16 {[%emt 0:00:00]} 52. Kd3 {[%emt 0:00:12]} Kd7 {[%emt 0:00:00]} 53. Qa2 {[%emt 0:00:42]} Rf6 {[%emt 0:00:00]} 54. Qa1 {[%emt 0:01:30]} Re6 {[%emt 0:00:00]} 55. Kc4 {[%emt 0:00:27] Against Nd5} Kc8 {[%emt 0:00:00]} 56. Qa4 {[%emt 0:00:46] Hoping for Qe8+.} Kd8 {[%emt 0:00:00] Against Qe8+} 57. Qd1+ {[%emt 0:02:07]} Ke8 {[%emt 0:00:23]} 58. Qh1 {[%emt 0:02:09]} (58. Kd3 $142) 58... Rc6 {[%emt 0:01:06]} ({Better is} 58... c6) 59. g4 {[%emt 0:00:23]} hxg4 {[%emt 0:00:40]} 60. hxg4 {[%emt 0:00:10]} e4 {[%emt 0:04:30]} 61. g5 {[%emt 0:04:15]} Kd7 {[%emt 0:00:21]} 62. Kd4 {[%emt 0:02:59]} Kd8 {[%emt 0:00:23]} 63. Qh7 {[%emt 0:00:47]} Kd7 {[%emt 0:00:15]} 64. Qf7 {[%emt 0:01:18]} Kd8 {[%emt 0:00:37]} 65. Ke5 {[%emt 0:01:36]} Kd7 {[%emt 0:00:09]} 66. Qa2 {[%emt 0:02:21]} Kd8 {[%emt 0:00:24]} 67. Qd2+ {[%emt 0:00:31]} Ke8 {[%emt 0:01:21]} 68. Qd4 {[%emt 0:01:51]} Nc8 {[%emt 0:00:29]} 69. Kd5 {[%emt 0:00:49]} Ne7+ {[%emt 0:00:07] [#]} 70. Kc4 $1 {[%emt 0:00:21]} Re6 {[%emt 0:00:59][%cal Of5f4]} 71. Qh8+ {[%emt 0:00:58]} Kd7 {[%emt 0:00:06][%cal Of5f4]} 72. Qh2 {[%emt 0:00:20]} (72. Qf8 $16) 72... Rc6 {[%emt 0:00:18]} (72... c6 $1 $11 {remains equal.}) 73. Qd2+ {[%emt 0:00:55]} Ke8 {[%emt 0:00:14]} 74. Qh2 {[%emt 0:01:48]} Kd7 $1 {[%emt 0:00:16]} 75. b5 {[%emt 0:00:10]} (75. Qe2 $16) 75... axb5+ $11 {[%emt 0:00:05] The position is equal.} 76. Kxb5 {[%emt 0:00:11]} Re6 {[%emt 0:00:52]} 77. Qh4 {[%emt 0:02:29]} Rc6 {[%emt 0:01:17]} 78. Qh8 {[%emt 0:01:14]} Re6 {[%emt 0:00:24]} 79. Qf8 {[%emt 0:00:21]} Rc6 {[%emt 0:01:47]} 80. Qf7 {[%emt 0:00:26]} Kd8 {[%emt 0:00:21]} 81. Kc4 {[%emt 0:02:01]} Kd7 {[%emt 0:00:11]} 82. Kd4 {[%emt 0:00:44]} Kd8 {[%emt 0:00:04]} 83. Qc4 {[%emt 0:00:48]} Kd7 {[%emt 0:00:05]} 84. Ke5 {[%emt 0:00:37]} Kd8 {[%emt 0:00:10]} 85. Qb5 {[%emt 0:01:00]} Kd7 {[%emt 0:00:12]} 86. Qa4 {[%emt 0:03:00]} Kd8 {[%emt 0:00:33]} 87. Qd4+ {[%emt 0:07:38]} Ke8 {[%emt 0:00:04]} 88. Kf4 {[%emt 0:03:16]} Re6 {[%emt 0:00:16]} 89. Kg3 {[%emt 0:00:52]} Rc6 {[%emt 0:00:17]} 90. Kf2 {[%emt 0:01:46]} Re6 {[%emt 0:00:16]} 91. Qa4+ {[%emt 0:01:11]} Rc6 {[%emt 0:00:07]} 92. Ke2 {[%emt 0:01:35]} Kd7 {[%emt 0:00:03]} 93. Kd2 {[%emt 0:01:08]} Kd8 {[%emt 0:00:05]} 94. Qd4+ {[%emt 0:00:47]} Ke8 {[%emt 0:00:05]} 95. Ke1 {[%emt 0:01:47]} Re6 {[%emt 0:00:22]} 96. Ke2 {[%emt 0:00:46]} Rc6 {[%emt 0:00:05]} 97. Qc4 {[%emt 0:00:56]} Kd7 {[%emt 0:00:09]} 98. Kf2 {[%emt 0:00:12]} Kd8 {[%emt 0:00:15]} 99. Kg3 {[%emt 0:00:15]} Kd7 {[%emt 0:00:04]} 100. Kf4 {[%emt 0:01:14]} Ke8 {[%emt 0:00:05]} 101. Qd4 {[%emt 0:00:23]} Re6 {[%emt 0:00:14]} 102. Qa4+ {[%emt 0:01:39]} Rc6 {[%emt 0:00:12]} 103. Ke5 {[%emt 0:00:50]} Kd8 {[%emt 0:00:14]} 104. Qb5 {[%emt 0:01:00]} Kd7 {[%emt 0:00:10]} 105. Qc4 {[%emt 0:00:37]} Kd8 {[%emt 0:00:10]} 106. Qc1 {[%emt 0:01:12]} Kd7 {[%emt 0:00:11]} 107. Qd1+ {[%emt 0:00:24]} Ke8 {[%emt 0:00:06]} 108. Qd4 {[%emt 0:00:45]} Ra6 {[%emt 0:00:17]} 109. Qb2 {[%emt 0:01:40]} Rc6 {[%emt 0:00:08]} 110. Qb4 {[%emt 0:00:16]} Kd7 {[%emt 0:00:09]} 111. Qb5 {[%emt 0:00:20]} Kd8 {[%emt 0:00:05]} 112. Qb4 {[%emt 0:00:25]} Kd7 {[%emt 0:00:05]} 113. Qd2+ {[%emt 0:00:07]} Ke8 {[%emt 0:00:06]} 114. Qd4 {[%emt 0:00:05]} Ra6 {[%emt 0:00:34] ( -> ...Nc6+)} 115. Kf4 {[%emt 0:00:06]} Rc6 {[%emt 0:00:11] Black defended with fortune.  Weighted Error Value: White=0.19 (very precise) /Black=0.24 (precise)} 1/2-1/2

[Event "Olomouc Chess Summer Open 2022"]
[Site "Olomouc"]
[Date "2022.08.20"]
[Round "9.17"]
[White "Jordanov, Mihail"]
[Black "Marek, Matyas"]
[Result "1-0"]
[ECO "B42"]
[WhiteElo "2158"]
[BlackElo "2354"]
[Annotator "TA"]
[PlyCount "91"]
[EventDate "2022.08.14"]
[EventCountry "CZE"]
[SourceTitle "playchess.com"]
[Source "ChessBase"]
[SourceQuality "1"]
[TimeControl "40/5400+30:1800+30"]

{[%evp 14,91,39,39,43,38,34,14,0,0,25,-18,-23,-47,-31,-87,-9,-14,-23,-28,-33,-14,-15,-104,23,13,15,30,38,0,0,0,90,47,116,110,106,109,117,125,135,111,143,143,134,139,140,130,132,129,130,131,219,74,237,201,384,331,1010,989,957,774,773,746,748,581,576,578,612,616,757,554,755,579,566,549,683,668,895,554]} 1. e4 {[%emt 0:00:04]} c5 {[%emt 0:00:04]} 2. Nf3 {[%emt 0:00:09]} e6 {[%emt 0:00:03]} 3. d4 {[%emt 0:00:07]} cxd4 {[%emt 0:00:03]} 4. Nxd4 {[%emt 0:00:06]} a6 {[%emt 0:00:02]} 5. Bd3 {[%emt 0:00:32]} Bc5 {[%emt 0:00:05]} 6. Nb3 {[%emt 0:00:22]} Ba7 {[%emt 0:00:04]} 7. Qg4 {[%emt 0:01:07]} Nf6 {[%emt 0:00:06]} 8. Qg3 {[%emt 0:00:58] e5 is the strong threat.} d6 {[%emt 0:00:07] B42: Sicilian: Kan Variation: 5 Bd3.} 9. Nc3 {[%emt 0:02:21]} (9. Qxg7 Rg8 10. Qh6 Bxf2+ $1 11. Kd1 Rxg2 $17) 9... Nc6 {[%emt 0:00:38]} 10. Bg5 {[%emt 0:00:27]} (10. Qxg7 Rg8 11. Qh6 Bxf2+ $1 12. Kd1 Rxg2 $17) (10. O-O {with more complications.} O-O 11. Be2 e5 12. Bh6) 10... h6 {[%emt 0:00:32] The position is equal.} 11. Bd2 {[%emt 0:00:32]} b5 {[%emt 0:01:01][%cal Bb7b5,Bb5b4][%mdl 32]} (11... Nh5 $5 {[%cal Rh5g3]} 12. Qh3 Nf6 $11) 12. f4 {[%emt 0:06:44] Strongly threatening e5.} (12. Qxg7 Bxf2+ $1 {[%mdl 512]} 13. Kxf2 Rg8 14. Qxg8+ Nxg8 $17) 12... b4 {[%emt 0:23:10]} 13. Ne2 {[%emt 0:05:08] [#] Threatens to win with e5.} (13. Qxg7 Rg8 14. Qxh6 bxc3 15. Bxc3 Bf2+ $1 {[%mdl 512]} 16. Kf1 e5 $1 17. fxe5 dxe5 $1 $19) 13... O-O $146 {[%emt 0:03:12]} ({Predecessor:} 13... e5 14. O-O-O O-O 15. f5 Kh7 16. Qh3 a5 17. g4 a4 18. Na1 Nd4 19. Bxb4 Bb7 {0-1 (39) Andreeva,E (1992)-Nasybullina,A (2103) Satka 2013}) 14. O-O-O {[%emt 0:08:32]} (14. e5 $15 Nd5 15. O-O-O) 14... Kh8 {[%emt 0:04:30]} (14... a5 $1 $17) 15. Kb1 {[%emt 0:10:51]} a5 {[%emt 0:03:25][%cal Ba6a5,Ba5a4,Ba4a3][%mdl 32]} 16. Qh3 {[%emt 0:04:54]} a4 {[%emt 0:11:51]} 17. Nbc1 {[%emt 0:00:31]} a3 {[%emt 0:01:35] aiming for ...axb2.} 18. b3 {[%emt 0:06:22]} (18. e5 $1 $11 Nd5 19. bxa3) 18... Rb8 {[%emt 0:08:34]} ({Black should try} 18... Qc7 $1 $17 19. g4 d5) 19. g4 $1 $11 {[%emt 0:07:44][%cal Bg2g4,Bg4g5,Bg5h6][%mdl 32]} Nh7 {[%emt 0:02:29]} (19... d5 $5 {[%cal Rd5e4]}) 20. Qg3 {[%emt 0:11:10]} Qf6 {[%emt 0:07:29][%csl Ga3][%cal Rf6b2]} 21. e5 $36 {[%emt 0:08:12][%mdl 2048] White is more active.} dxe5 {[%emt 0:00:43]} 22. g5 {[%emt 0:00:11]} Qe7 {[%emt 0:15:58]} (22... exf4 $11 23. gxf6 fxg3 24. fxg7+ Kxg7) 23. gxh6 {[%emt 0:06:17][%csl Gh6][%cal Rg3g7]} g6 {[%emt 0:00:45]} (23... f5 $14) 24. fxe5 $16 {[%emt 0:00:21]} Qc5 {[%emt 0:00:34]} 25. Bf4 {[%emt 0:02:38]} Ne7 {[%emt 0:00:53]} 26. Be4 {[%emt 0:03:11]} Bb7 {[%emt 0:02:16]} 27. Nd3 {[%emt 0:01:21] Dancing on a razor blade.} Qb6 {[%emt 0:00:15]} 28. Bxb7 {[%emt 0:00:24] White is more active.} Qxb7 {[%emt 0:00:11]} 29. Rhf1 {[%emt 0:02:39]} Nf5 {[%emt 0:00:52]} 30. Qf3 {[%emt 0:01:05]} Qc7 {[%emt 0:00:11]} 31. Qe4 {[%emt 0:00:36]} Rfc8 {[%emt 0:06:49] [#]} 32. Rc1 {[%emt 0:00:33]} Rd8 {[%emt 0:00:09]} (32... Bc5 $16 {was necessary.}) 33. Bd2 {[%emt 0:03:07]} (33. Nxb4 $18 {is more deadly. Black must now prevent Nc6.} g5 34. Bg3 (34. Na6 Qb7 $16)) 33... Nd4 {[%emt 0:04:17] A mistake that costs the game.} (33... Bc5 $16) 34. Nxb4 {[%emt 0:03:37]} ({Wrong is} 34. Bxb4 $2 {[#]} Rxb4 $1 {[%mdl 512]} 35. Ng3 (35. Nxb4 $2 Nxe2 36. c4 Nxc1 $19) 35... Rb7 $19) 34... Ng5 $2 {[%emt 0:03:10]} (34... Nf5 35. Nd3 Bc5) 35. Qf4 {[%emt 0:02:23] Threatening mate with Qf6+.} ({Less strong is} 35. Bxg5 Nxe2 36. Qf3 (36. Qxe2 {gets mated.} Qc3 37. Bf6+ Kh7 38. Nd3 Bd4 39. Bxd8 Qa1#) 36... Nc3+ 37. Ka1 f5 $18) 35... Kh7 $2 {[%emt 0:01:25]} (35... Nh7 36. Ng3 Rb7) 36. Qf6 $18 {[%emt 0:01:03][%csl Gh6][%cal Rf6g7] White is clearly winning.} Rg8 {[%emt 0:00:26] Prevents Qg7+.} 37. Nxd4 {[%emt 0:01:43]} Bxd4 {[%emt 0:00:28]} 38. Bxg5 {[%emt 0:00:32]} Rb7 {[%emt 0:00:25]} 39. Bd2 {[%emt 0:00:31]} Bxe5 {[%emt 0:00:21]} 40. Qf3 {[%emt 0:00:30]} Rd8 {[%emt 0:00:28]} 41. Nd3 {[%emt 0:01:32]} Bh8 {[%emt 0:00:27]} 42. h4 {[%emt 0:13:32]} Qd7 {[%emt 0:01:13][%cal Od7d4]} 43. Qe3 {[%emt 0:03:09]} Rb5 {[%emt 0:00:51]} 44. Rf4 {[%emt 0:01:16]} e5 {[%emt 0:01:43]} 45. Ra4 {[%emt 0:01:28]} Qe6 {[%emt 0:02:02]} 46. Bc3 {[%emt 0:01:16] Weighted Error Value: White=0.28 (precise) /Black=0.37} 1-0

[Event "Olomouc Chess Summer Open 2022"]
[Site "Olomouc"]
[Date "2022.08.20"]
[Round "9.18"]
[White "Zvolanek, Libor"]
[Black "Houska, Jiri"]
[Result "1/2-1/2"]
[ECO "A05"]
[WhiteElo "2130"]
[BlackElo "2220"]
[Annotator "TA"]
[PlyCount "32"]
[EventDate "2022.08.14"]
[EventCountry "CZE"]
[SourceTitle "playchess.com"]
[Source "ChessBase"]
[SourceQuality "1"]
[TimeControl "40/5400+30:1800+30"]

{[%evp 13,14,-5,7]} 1. Nf3 {[%emt 0:00:01]} Nf6 {[%emt 0:01:11]} 2. g3 {[%emt 0:00:15]} g6 {[%emt 0:00:08]} 3. Bg2 {[%emt 0:00:22]} Bg7 {[%emt 0:00:04]} 4. O-O {[%emt 0:00:07]} O-O {[%emt 0:00:07]} 5. d3 {[%emt 0:00:36]} d5 {[%emt 0:03:35]} 6. Nbd2 {[%emt 0:00:09]} c5 {[%emt 0:03:21] 6...Nc6 is the hot move.} 7. e4 {[%emt 0:00:44]} Nc6 {[%emt 0:01:44] [#]} {Predecessor:} 8. exd5 $146 {A08: King's Indian Attack.} Nxd5 9. Re1 b6 10. Nc4 Bb7 11. c3 h6 12. Nfe5 Nxe5 13. Nxe5 Qc7 14. Qe2 Rad8 15. a4 e6 16. a5 b5 {1-0 (36) Mamedyarov,S (2765)-Ding,L (2799) Chess.com INT 2021} 1/2-1/2

[Event "Olomouc Chess Summer Open 2022"]
[Site "Olomouc"]
[Date "2022.08.20"]
[Round "9.19"]
[White "Soban, Jaroslav"]
[Black "Mohapl, Tomas"]
[Result "1/2-1/2"]
[ECO "B10"]
[WhiteElo "2101"]
[BlackElo "1877"]
[Annotator "TA"]
[PlyCount "51"]
[EventDate "2022.08.14"]
[EventCountry "CZE"]
[SourceTitle "playchess.com"]
[Source "ChessBase"]
[SourceQuality "1"]
[TimeControl "40/5400+30:1800+30"]

{[%evp 18,51,0,0,0,0,0,0,0,0,0,-6,0,-12,-6,-25,79,-2,-6,-10,-3,0,0,-8,0,0,0,-58,0,-68,-62,-60,0,-2,-1,-6]} 1. c4 {[%emt 0:00:06]} c6 {[%emt 0:00:07]} 2. e4 {[%emt 0:00:06]} d5 {[%emt 0:00:09]} 3. exd5 {[%emt 0:00:06]} cxd5 {[%emt 0:00:05]} 4. cxd5 {[%emt 0:00:04]} Nf6 {[%emt 0:05:38]} 5. Qa4+ {[%emt 0:00:11]} Nbd7 {[%emt 0:03:33]} 6. Nc3 {[%emt 0:00:27]} g6 {[%emt 0:07:47]} 7. Bc4 {[%emt 0:05:21]} Bg7 {[%emt 0:02:40]} 8. Nf3 {[%emt 0:08:31]} O-O {[%emt 0:01:56]} 9. d3 {[%emt 0:01:02]} Nb6 {[%emt 0:26:19]} 10. Qb3 {[%emt 0:00:38]} Bg4 {[%emt 0:02:45] B10: Caro-Kann: 2 d3 and 2 c4.} 11. Ng5 {[%emt 0:19:36]} Rc8 {[%emt 0:06:54]} 12. Be3 {[%emt 0:06:27]} Nxc4 {[%emt 0:23:24]} 13. dxc4 {[%emt 0:00:41]} Qc7 {[%emt 0:06:40] [#]} 14. h3 $146 {[%emt 0:15:49]} ({Predecessor:} 14. c5 h6 15. Nge4 Nxe4 16. Nxe4 Qe5 17. Nc3 Rxc5 18. O-O Rc7 19. Bxa7 Qh5 20. Ne4 {1-0 (60) Garkauskas,O (2139)-De Carvalho,I (1910) Pocos de Caldas 2014}) 14... Bf5 {[%emt 0:00:52]} 15. c5 {[%emt 0:00:17]} h6 {[%emt 0:01:12]} 16. Nf3 {[%emt 0:00:19] Pair of Knights!} Be4 {[%emt 0:00:47]} (16... Nd7 $11) 17. Nxe4 {[%emt 0:01:36]} (17. O-O $16) 17... Nxe4 $11 {[%emt 0:00:05]} 18. O-O {[%emt 0:09:13]} Nxc5 {[%emt 0:01:19]} 19. Qa3 {[%emt 0:02:31] [#] Hoping for Rac1.} b6 {[%emt 0:02:27]} 20. Rac1 {[%emt 0:00:10] Threatens to win with b4.} Qd6 {[%emt 0:00:24]} 21. b4 {[%emt 0:04:11]} Ne4 {[%emt 0:01:39]} 22. Qxa7 {[%emt 0:10:19]} (22. Rxc8 $11 Rxc8 23. Qxa7) 22... Qxb4 {[%emt 0:00:57]} (22... Nc3 $15 23. Rfe1 Nxd5) 23. Qxb6 {[%emt 0:00:27]} ({White should play} 23. Rxc8 $11 Rxc8 24. Re1) 23... Qxb6 $15 {[%emt 0:01:07]} 24. Bxb6 {[%emt 0:00:02]} Ra8 {[%emt 0:00:27]} (24... Nc3 $15 25. Kh2 Nxd5) 25. Rfe1 {[%emt 0:03:26]} Nc3 {[%emt 0:01:28]} 26. Rxe7 {[%emt 0:04:32] Weighted Error Value: White=0.24 (precise) /Black=0.24 (precise)} 1/2-1/2

[Event "Olomouc Chess Summer Open 2022"]
[Site "Olomouc"]
[Date "2022.08.20"]
[Round "9.20"]
[White "Svancara, Petr"]
[Black "Fizer, Marek"]
[Result "1-0"]
[ECO "D02"]
[WhiteElo "2145"]
[BlackElo "1998"]
[Annotator "TA"]
[PlyCount "59"]
[EventDate "2022.08.14"]
[EventCountry "CZE"]
[SourceTitle "playchess.com"]
[Source "ChessBase"]
[SourceQuality "1"]
[TimeControl "40/5400+30:1800+30"]

{[%evp 10,58,4,-6,4,0,19,8,34,24,37,16,28,12,11,6,12,14,27,11,14,14,28,-2,-5,-8,-4,-31,-25,-37,-26,-31,30,26,38,39,47,45,58,49,50,42,67,77,112,58,963,985,2559,2418,29999]} 1. d4 {[%emt 0:00:04]} d5 {[%emt 0:00:12]} 2. Nf3 {[%emt 0:00:06]} Nf6 {[%emt 0:00:06]} 3. Bf4 {[%emt 0:00:33]} e6 {[%emt 0:00:34]} 4. e3 {[%emt 0:00:08]} Bd6 {[%emt 0:00:50]} 5. Bg3 {[%emt 0:00:51]} O-O {[%emt 0:00:44]} 6. Bd3 {[%emt 0:00:09]} Nbd7 {[%emt 0:01:31] D02: 1 d4 d5 2 Nf3 sidelines, including 2...Nf6 3 g3 and 2...Nf6 3 Bf4.} 7. Nbd2 {[%emt 0:00:46]} Qe7 {[%emt 0:02:43]} 8. Ne5 {[%emt 0:00:39]} b6 {[%emt 0:05:03] The position is equal.} 9. O-O {[%emt 0:01:46]} Bb7 {[%emt 0:04:16]} 10. c3 {[%emt 0:04:07]} a6 {[%emt 0:06:31] [#]} 11. Qe2 $146 {[%emt 0:13:25]} ({Predecessor:} 11. f4 Ne4 12. Qc2 f5 13. Ndf3 c5 14. Bh4 Ndf6 15. h3 Rac8 16. Qe2 b5 17. g4 {1-0 (35) Dlugy,M (2518)-Volkov,S (2270) Chess.com INT 2015}) 11... Ne4 {[%emt 0:10:39]} 12. Nxd7 {[%emt 0:02:16]} Qxd7 {[%emt 0:01:07]} 13. Bxd6 {[%emt 0:00:14]} Qxd6 {[%emt 0:03:29]} 14. Rad1 {[%emt 0:04:25]} Nxd2 {[%emt 0:06:11]} 15. Rxd2 {[%emt 0:01:29]} c5 {[%emt 0:01:19]} 16. f4 {[%emt 0:01:39]} c4 {[%emt 0:01:56]} 17. Bc2 {[%emt 0:00:49]} f5 {[%emt 0:00:51]} 18. Kh1 {[%emt 0:06:29]} b5 {[%emt 0:03:18]} 19. Qe1 {[%emt 0:08:59]} a5 {[%emt 0:08:15]} 20. Rg1 {[%emt 0:05:47]} g6 {[%emt 0:26:25]} ({Black should try} 20... Rf7 $15) 21. g4 $11 {[%emt 0:03:07]} Qe7 {[%emt 0:01:37]} 22. Rdg2 {[%emt 0:00:30]} Ra6 {[%emt 0:02:01]} 23. h4 {[%emt 0:04:00][%cal Bh2h4,Bh4h5][%mdl 32]} Bc6 {[%emt 0:02:00]} 24. h5 {[%emt 0:04:12]} Be8 {[%emt 0:01:46]} 25. Qg3 {[%emt 0:05:49]} Kg7 {[%emt 0:01:46]} 26. Qh3 {[%emt 0:02:51] And now hxg6 would win.} Qf6 {[%emt 0:06:25]} 27. Rh2 {[%emt 0:10:31]} ({White should play} 27. gxf5 $16 exf5 28. hxg6 hxg6 29. Rh2) 27... b4 $2 {[%emt 0:01:31][%mdl 8192] [#]} (27... Kh8 $14) 28. hxg6 $18 {[%emt 0:03:02]} Bxg6 {[%emt 0:00:06]} 29. gxf5 {[%emt 0:01:19]} exf5 {[%emt 0:00:53]} 30. Qxh7# {[%emt 0:00:11] Weighted Error Value: White=0.11 (very precise) /Black=0.38} 1-0